[Event "US Open 2021"]
[Site "Crowne Plaza Cherry Hill, United States"]
[Date "2021.08.01"]
[Round "2.1"]
[White "Zhao, Boyang"]
[Black "Bruzon Batista, Lazaro"]
[Result "0-1"]
[TimeControl "40/100;SD/30;+30"]
[BlackTitle "GM"]
[WhiteElo "2014"]
[BlackElo "2725"]

1. e4 {[%clk 01:40:55]} {[%emt 00:07:13]} c5 {[%clk 01:33:31]} 2. c3 {[%clk
01:40:38]} {[%emt 00:00:08]} Nf6 {[%clk 01:33:52]} 3. e5 {[%clk 01:40:53]} Nd5
{[%clk 01:34:17]} 4. d4 {[%clk 01:41:17]} cxd4 {[%clk 01:34:44]} 5. cxd4 {[%clk
01:41:37]} e6 {[%clk 01:34:59]} 6. Nf3 {[%clk 01:41:24]} d6 {[%clk 01:35:00]} 7.
Bc4 {[%clk 01:40:19]} Be7 {[%clk 01:34:56]} 8. O-O {[%clk 01:40:08]} O-O {[%clk
01:34:38]} 9. a3 {[%clk 01:35:02]} b6 {[%clk 01:33:06]} 10. Qd3 {[%clk
01:26:57]} Bb7 {[%clk 01:29:49]} 11. Nc3 {[%clk 01:17:53]} {[%emt 00:05:54]}
Nxc3 {[%clk 01:28:37]} {[%emt 00:01:48]} 12. Qxc3 {[%clk 01:16:02]} {[%emt
00:02:24]} Nd7 {[%clk 01:28:32]} {[%emt 00:00:23]} 13. exd6 {[%clk 01:06:00]}
{[%emt 00:10:35]} Bxd6 {[%clk 01:28:52]} {[%emt 00:00:20]} 14. Bb3 {[%clk
01:00:23]} {[%emt 00:06:11]} Rc8 {[%clk 01:27:52]} {[%emt 00:01:15]} 15. Qd3
{[%clk 00:51:54]} {[%emt 00:08:59]} Nc5 {[%clk 01:25:56]} {[%emt 00:03:37]} 16.
Qe3 {[%clk 00:42:02]} {[%emt 00:09:17]} Bf4 {[%clk 01:22:10]} {[%emt 00:04:28]}
17. Qc3 {[%clk 00:30:23]} {[%emt 00:11:52]} Nxb3 {[%clk 01:21:31]} {[%emt
00:01:07]} 18. Qxb3 {[%clk 00:29:45]} {[%emt 00:01:20]} Bd5 {[%clk 01:21:44]}
{[%emt 00:00:12]} 19. Qa4 {[%clk 00:21:31]} {[%emt 00:09:03]} Bxc1 {[%clk
01:21:50]} 0-1

[Event "US Open 2021"]
[Site "Crowne Plaza Cherry Hill, United States"]
[Date "2021.08.01"]
[Round "2.2"]
[White "Gledura, Benjamin"]
[Black "Luchan, Jason"]
[Result "1-0"]
[TimeControl "40/100;SD/30;+30"]
[WhiteTitle "GM"]
[WhiteElo "2721"]
[BlackElo "2021"]

1. Nf3 {[%clk 01:40:54]} {[%emt 00:05:39]} c5 {[%clk 01:39:55]} 2. e4 {[%clk
01:40:50]} {[%emt 00:00:04]} Nc6 {[%clk 01:39:46]} 3. Bb5 {[%clk 01:40:42]} d6
{[%clk 01:38:59]} 4. O-O {[%clk 01:39:47]} Bd7 {[%clk 01:39:22]} 5. c3 {[%clk
01:36:23]} Nf6 {[%clk 01:39:09]} 6. Re1 {[%clk 01:36:17]} {[%emt 00:00:04]} a6
{[%clk 01:38:48]} 7. Bf1 {[%clk 01:35:48]} Bg4 {[%clk 01:36:42]} 8. h3 {[%clk
01:35:21]} Bh5 {[%clk 01:35:38]} 9. g4 {[%clk 01:30:31]} Bg6 {[%clk 01:35:38]}
10. d4 {[%clk 01:26:54]} {[%emt 00:00:25]} e5 {[%clk 01:26:27]} {[%emt
00:03:21]} 11. d5 {[%clk 01:21:59]} {[%emt 00:04:54]} Nb8 {[%clk 01:23:20]}
{[%emt 00:03:32]} 12. Nbd2 {[%clk 01:22:17]} {[%emt 00:00:27]} Be7 {[%clk
01:23:30]} {[%emt 00:00:05]} 13. Nh4 {[%clk 01:15:49]} {[%emt 00:06:59]} Nbd7
{[%clk 01:23:10]} {[%emt 00:00:48]} 14. a4 {[%clk 01:14:27]} {[%emt 00:01:52]}
b6 {[%clk 01:21:58]} {[%emt 00:01:47]} 15. f3 {[%clk 01:10:26]} {[%emt
00:04:26]} O-O {[%clk 01:12:09]} {[%emt 00:10:17]} 16. Nc4 {[%clk 01:09:27]}
{[%emt 00:01:48]} Ne8 {[%clk 01:12:11]} {[%emt 00:00:10]} 17. Ng2 {[%clk
01:09:19]} {[%emt 00:00:47]} h6 {[%clk 01:08:59]} {[%emt 00:03:34]} 18. Be3
{[%clk 01:09:23]} {[%emt 00:00:50]} Bg5 {[%clk 01:02:51]} {[%emt 00:06:21]} 19.
Bf2 {[%clk 01:09:43]} {[%emt 00:00:06]} Qf6 {[%clk 01:00:03]} {[%emt 00:03:15]}
20. b4 {[%clk 01:08:52]} {[%emt 00:01:40]} Nc7 {[%clk 00:58:21]} {[%emt
00:02:31]} 21. h4 {[%clk 01:06:57]} {[%emt 00:01:46]} Bf4 {[%clk 00:58:20]}
{[%emt 00:00:31]} 22. a5 {[%clk 01:06:39]} {[%emt 00:00:49]} bxa5 {[%clk
00:44:22]} {[%emt 00:19:52]} 23. bxc5 {[%clk 01:06:29]} dxc5 {[%clk 00:43:38]}
24. Rxa5 {[%clk 01:05:43]} Nb5 {[%clk 00:40:45]} {[%emt 00:01:41]} 25. Qa1
{[%clk 01:04:00]} {[%emt 00:01:40]} Rfc8 {[%clk 00:34:41]} {[%emt 00:06:34]} 26.
Nxf4 {[%clk 00:58:46]} {[%emt 00:05:50]} Qxf4 {[%clk 00:29:09]} {[%emt
00:05:56]} 27. Kg2 {[%clk 00:59:04]} {[%emt 00:00:23]} Qf6 {[%clk 00:27:52]}
{[%emt 00:01:36]} 28. Rb1 {[%clk 00:59:03]} {[%emt 00:00:31]} Nc7 {[%clk
00:22:50]} {[%emt 00:05:33]} 29. h5 {[%clk 00:52:05]} {[%emt 00:08:02]} Bh7
{[%clk 00:22:59]} {[%emt 00:00:06]} 30. Rb7 {[%clk 00:51:59]} {[%emt 00:00:17]}
Qd8 {[%clk 00:18:40]} {[%emt 00:04:51]} 31. Bg3 {[%clk 00:49:13]} {[%emt
00:03:14]} f6 {[%clk 00:18:19]} {[%emt 00:00:51]} 32. Qa2 {[%clk 00:48:50]}
{[%emt 00:00:53]} Kf8 {[%clk 00:16:16]} {[%emt 00:02:47]} 33. Bf2 {[%clk
00:48:58]} {[%emt 00:00:26]} Bg8 {[%clk 00:15:10]} {[%emt 00:01:40]} 34. Rxc5
{[%clk 00:48:16]} {[%emt 00:00:53]} 1-0

[Event "US Open 2021"]
[Site "Crowne Plaza Cherry Hill, United States"]
[Date "2021.08.01"]
[Round "2.3"]
[White "Cohen, Lawrence"]
[Black "Lenderman, Aleksandre"]
[Result "0-1"]
[TimeControl "40/100;SD/30;+30"]
[BlackTitle "GM"]
[WhiteElo "2000"]
[BlackElo "2703"]

1. c4 {[%clk 01:40:56]} e6 {[%clk 01:40:56]} {[%emt 00:04:11]} 2. g3 {[%clk
01:41:17]} d5 {[%clk 01:41:21]} 3. cxd5 {[%clk 01:41:41]} exd5 {[%clk
01:41:48]} 4. d4 {[%clk 01:42:04]} c6 {[%clk 01:42:02]} 5. Bg2 {[%clk
01:42:24]} h6 {[%clk 01:42:06]} 6. Nc3 {[%clk 01:42:30]} Nf6 {[%clk 01:42:30]}
7. e3 {[%clk 01:42:48]} Bd6 {[%clk 01:42:11]} 8. Nge2 {[%clk 01:42:42]} O-O
{[%clk 01:42:16]} 9. O-O {[%clk 01:43:05]} Re8 {[%clk 01:41:59]} 10. a3 {[%clk
01:43:06]} Be6 {[%clk 01:39:51]} 11. f3 {[%clk 01:39:22]} c5 {[%clk 01:40:06]}
12. dxc5 {[%clk 01:38:45]} Bxc5 {[%clk 01:40:33]} 13. b4 {[%clk 01:39:05]} Bb6
{[%clk 01:39:59]} 14. Na4 {[%clk 01:35:09]} Nc6 {[%clk 01:37:22]} 15. Nxb6
{[%clk 01:34:06]} Qxb6 {[%clk 01:37:50]} 16. Nd4 {[%clk 01:34:15]} Ne5 {[%clk
01:35:45]} 17. Kh1 {[%clk 01:28:09]} Bd7 {[%clk 01:35:40]} 18. Re1 {[%clk
01:26:37]} Re7 {[%clk 01:35:12]} 19. Qb3 {[%clk 01:14:07]} {[%emt 00:08:54]}
Rae8 {[%clk 01:32:13]} {[%emt 00:03:16]} 20. Bf1 {[%clk 01:14:23]} {[%emt
00:00:41]} h5 {[%clk 01:27:50]} {[%emt 00:05:01]} 21. Ra2 {[%clk 01:13:18]}
{[%emt 00:01:06]} Qd6 {[%clk 01:23:33]} {[%emt 00:05:40]} 22. b5 {[%clk
01:05:39]} {[%emt 00:07:09]} Rc8 {[%clk 01:18:05]} {[%emt 00:06:06]} 23. a4
{[%clk 01:03:46]} {[%emt 00:02:37]} Ree8 {[%clk 01:18:31]} 24. Ba3 {[%clk
01:02:07]} {[%emt 00:02:00]} Qb6 {[%clk 01:18:23]} {[%emt 00:00:27]} 25. Rc2
{[%clk 00:49:53]} {[%emt 00:12:49]} Rxc2 {[%clk 01:17:24]} {[%emt 00:02:23]} 26.
Qxc2 {[%clk 00:49:59]} Rc8 {[%clk 01:17:27]} 27. Qd2 {[%clk 00:48:22]} {[%emt
00:01:58]} Nc4 {[%clk 01:17:03]} {[%emt 00:01:00]} 28. Bxc4 {[%clk 00:48:08]}
{[%emt 00:01:19]} Rxc4 {[%clk 01:16:52]} {[%emt 00:00:14]} 29. a5 {[%clk
00:47:49]} {[%emt 00:00:35]} Qc7 {[%clk 01:16:10]} {[%emt 00:01:10]} 30. Bb4
{[%clk 00:42:02]} {[%emt 00:10:59]} Bh3 {[%clk 01:13:31]} 31. Ba3 {[%clk
00:41:23]} Nd7 {[%clk 01:11:08]} {[%emt 00:02:54]} 32. Rc1 {[%clk 00:39:17]}
{[%emt 00:02:13]} Ne5 {[%clk 01:10:26]} {[%emt 00:01:14]} 33. Kg1 {[%clk
00:33:34]} {[%emt 00:06:21]} Rxc1+ {[%clk 01:09:53]} {[%emt 00:01:08]} 34. Bxc1
{[%clk 00:30:43]} {[%emt 00:03:07]} Qc4 {[%clk 01:10:11]} {[%emt 00:00:19]} 35.
Qc2 {[%clk 00:29:27]} {[%emt 00:01:36]} Qf1# {[%emt 00:00:15]} 0-1

[Event "US Open 2021"]
[Site "Crowne Plaza Cherry Hill, United States"]
[Date "2021.08.01"]
[Round "2.4"]
[White "Burke, John Michael"]
[Black "Hall, Timothy"]
[Result "1-0"]
[TimeControl "40/100;SD/30;+30"]
[WhiteTitle "GM"]
[WhiteElo "2640"]
[BlackElo "2000"]

1. e4 {[%clk 01:40:56]} c5 {[%clk 01:40:47]} 2. Nf3 {[%clk 01:41:22]} {[%emt
00:00:04]} d6 {[%clk 01:41:02]} 3. d4 {[%clk 01:41:48]} cxd4 {[%clk 01:41:20]}
4. Nxd4 {[%clk 01:42:14]} Nf6 {[%clk 01:41:27]} 5. Nc3 {[%clk 01:42:40]} a6
{[%clk 01:41:41]} 6. h3 {[%clk 01:42:53]} e5 {[%clk 01:40:50]} 7. Nb3 {[%clk
01:42:24]} h5 {[%clk 01:34:16]} 8. Bg5 {[%clk 01:40:00]} Be6 {[%clk 01:32:30]}
9. f4 {[%clk 01:40:13]} Be7 {[%clk 01:27:53]} 10. f5 {[%clk 01:29:04]} Bxb3
{[%clk 01:09:49]} {[%emt 00:15:08]} 11. axb3 {[%clk 01:29:29]} {[%emt
00:00:14]} Nxe4 {[%clk 01:06:00]} {[%emt 00:04:15]} 12. Bxe7 {[%clk 01:29:14]}
{[%emt 00:00:41]} Nxc3 {[%clk 01:05:46]} {[%emt 00:00:36]} 13. Bxd8 {[%clk
01:29:38]} {[%emt 00:00:13]} Nxd1 {[%clk 01:05:57]} {[%emt 00:00:20]} 14. Bg5
{[%clk 01:29:32]} {[%emt 00:01:15]} f6 {[%clk 00:53:29]} {[%emt 00:12:12]} 15.
Bc1 {[%clk 01:27:50]} {[%emt 00:02:30]} Nxb2 {[%clk 00:51:13]} {[%emt
00:02:42]} 16. Bxb2 {[%clk 01:28:16]} Nc6 {[%clk 00:49:40]} {[%emt 00:02:21]}
17. Bc4 {[%clk 01:27:03]} {[%emt 00:01:33]} O-O-O {[%clk 00:49:26]} {[%emt
00:01:36]} 18. O-O-O {[%clk 01:27:04]} h4 {[%clk 00:47:41]} {[%emt 00:01:45]}
19. Rhe1 {[%clk 01:23:54]} {[%emt 00:03:42]} Ne7 {[%clk 00:46:21]} {[%emt
00:01:35]} 20. Be6+ {[%clk 01:23:11]} {[%emt 00:01:13]} Kc7 {[%clk 00:46:33]}
{[%emt 00:00:43]} 21. Re4 {[%clk 01:20:00]} {[%emt 00:03:17]} Rh5 {[%clk
00:41:12]} {[%emt 00:06:04]} 22. Rc4+ {[%clk 01:19:04]} {[%emt 00:01:12]} Kb6
{[%clk 00:38:25]} {[%emt 00:03:17]} 23. Ba3 {[%clk 01:17:33]} {[%emt 00:02:26]}
Nxf5 {[%clk 00:35:01]} {[%emt 00:10:24]} 24. Bxf5 {[%clk 01:17:58]} Rxf5 {[%clk
00:35:09]} 25. Bxd6 {[%clk 01:18:21]} Rh8 {[%clk 00:29:33]} 26. Bc5+ {[%clk
01:18:33]} {[%emt 00:00:08]} Kc7 {[%clk 00:26:10]} {[%emt 00:04:21]} 27. Ba7#
{[%clk 01:18:58]} 1-0

[Event "US Open 2021"]
[Site "Crowne Plaza Cherry Hill, United States"]
[Date "2021.08.01"]
[Round "2.5"]
[White "Nyzhnyk, Illia"]
[Black "Tisserand, Miles"]
[Result "1-0"]
[TimeControl "40/100;SD/30;+30"]
[WhiteTitle "GM"]
[WhiteElo "2778"]
[BlackElo "2054"]

1. d4 {[%clk 01:40:56]} Nf6 {[%clk 01:40:54]} 2. Bf4 {[%clk 01:41:15]} c5
{[%clk 01:40:51]} {[%emt 00:00:26]} 3. dxc5 {[%clk 01:41:36]} {[%emt 00:00:15]}
Qa5+ {[%clk 01:40:05]} {[%emt 00:01:34]} 4. Qd2 {[%clk 01:42:00]} Qxc5 {[%clk
01:38:55]} {[%emt 00:01:43]} 5. Nc3 {[%clk 01:42:25]} d5 {[%clk 01:33:44]}
{[%emt 00:05:24]} 6. O-O-O {[%clk 01:38:50]} {[%emt 00:04:52]} Be6 {[%clk
01:29:23]} {[%emt 00:04:04]} 7. e4 {[%clk 01:37:23]} {[%emt 00:01:57]} Nc6
{[%clk 01:18:33]} {[%emt 00:11:49]} 8. exd5 {[%clk 01:37:07]} {[%emt 00:00:19]}
O-O-O {[%clk 01:10:37]} {[%emt 00:08:45]} 9. Be3 {[%clk 01:31:40]} {[%emt
00:05:36]} Qa5 {[%clk 01:10:31]} {[%emt 00:01:13]} 10. Bc4 {[%clk 01:31:59]}
Nb4 {[%clk 01:01:58]} {[%emt 00:08:43]} 11. Nf3 {[%clk 01:31:41]} {[%emt
00:00:40]} Nbxd5 {[%clk 00:53:41]} {[%emt 00:08:51]} 12. Nxd5 {[%clk 01:31:31]}
{[%emt 00:01:05]} Qxd2+ {[%clk 00:53:51]} 13. Rxd2 {[%clk 01:31:48]} {[%emt
00:00:10]} Bxd5 {[%clk 00:52:42]} {[%emt 00:01:33]} 14. Bxd5 {[%clk 01:32:08]}
{[%emt 00:00:18]} Rxd5 {[%clk 00:52:27]} {[%emt 00:00:40]} 15. Ng5 {[%clk
01:32:08]} {[%emt 00:00:35]} e6 {[%clk 00:50:03]} {[%emt 00:03:22]} 16. Rxd5
{[%clk 01:31:08]} {[%emt 00:01:34]} Nxd5 {[%clk 00:49:25]} {[%emt 00:00:43]} 17.
Nxf7 {[%clk 01:31:33]} Rg8 {[%clk 00:49:37]} {[%emt 00:00:28]} 18. Bxa7 {[%clk
01:31:56]} b6 {[%clk 00:38:03]} {[%emt 00:12:14]} 19. c4 {[%clk 01:32:19]} Kb7
{[%clk 00:31:51]} {[%emt 00:06:29]} 20. cxd5 {[%clk 01:32:40]} {[%emt
00:00:34]} exd5 {[%clk 00:32:12]} {[%emt 00:00:04]} 21. Bxb6 {[%clk 01:33:07]}
Kxb6 {[%clk 00:32:20]} {[%emt 00:00:16]} 22. Ne5 {[%clk 01:33:33]} Bd6 {[%clk
00:31:11]} {[%emt 00:01:33]} 23. Nd3 {[%clk 01:33:56]} {[%emt 00:00:16]} Ra8
{[%clk 00:31:28]} {[%emt 00:00:04]} 24. a3 {[%clk 01:34:20]} {[%emt 00:00:17]}
Kb5 {[%clk 00:31:39]} {[%emt 00:00:09]} 25. Kd2 {[%clk 01:34:44]} {[%emt
00:00:18]} Kc4 {[%clk 00:31:00]} {[%emt 00:01:06]} 26. Rc1+ {[%clk 01:35:06]}
Kd4 {[%clk 00:31:01]} {[%emt 00:00:25]} 27. h3 {[%clk 01:35:00]} {[%emt
00:00:52]} Ra7 {[%clk 00:29:48]} {[%emt 00:01:27]} 28. Rc3 {[%clk 01:34:07]}
{[%emt 00:01:55]} Be7 {[%clk 00:29:05]} {[%emt 00:00:41]} 29. b4 {[%clk
01:34:23]} {[%emt 00:00:42]} Bg5+ {[%clk 00:28:37]} {[%emt 00:00:38]} 30. f4
{[%clk 01:34:36]} {[%emt 00:00:07]} Bf6 {[%clk 00:28:55]} {[%emt 00:00:49]} 31.
Nc5 {[%clk 01:34:50]} g5 {[%clk 00:24:11]} {[%emt 00:04:57]} 32. Ne6+ {[%clk
01:34:48]} {[%emt 00:00:35]} Ke4 {[%clk 00:24:25]} {[%emt 00:00:11]} 33. Re3+
{[%clk 01:35:16]} {[%emt 00:00:03]} Kf5 {[%clk 00:24:46]} {[%emt 00:00:04]} 34.
g4+ {[%clk 01:35:45]} {[%emt 00:00:09]} Kg6 {[%clk 00:24:33]} {[%emt 00:00:39]}
35. f5+ {[%clk 01:36:12]} {[%emt 00:00:04]} Kf7 {[%clk 00:24:35]} {[%emt
00:00:33]} 36. Kc2 {[%clk 01:36:39]} 1-0

[Event "US Open 2021"]
[Site "Crowne Plaza Cherry Hill, United States"]
[Date "2021.08.01"]
[Round "2.6"]
[White "Zhang, Nathaniel"]
[Black "Cordova Daza, Emilio"]
[Result "0-1"]
[TimeControl "40/100;SD/30;+30"]
[BlackTitle "GM"]
[WhiteElo "2050"]
[BlackElo "2646"]

1. c4 {[%clk 01:40:05]} b6 {[%clk 01:40:38]} {[%emt 00:00:27]} 2. Nf3 {[%clk
01:39:23]} {[%emt 00:01:22]} Bb7 {[%clk 01:40:57]} {[%emt 00:00:29]} 3. e3
{[%clk 01:39:36]} Nf6 {[%clk 01:40:33]} {[%emt 00:01:05]} 4. d4 {[%clk
01:39:25]} {[%emt 00:00:14]} e6 {[%clk 01:40:53]} {[%emt 00:00:31]} 5. Bd3
{[%clk 01:39:34]} {[%emt 00:00:09]} c5 {[%clk 01:40:55]} {[%emt 00:00:46]} 6.
O-O {[%clk 01:38:06]} {[%emt 00:01:39]} Be7 {[%clk 01:40:56]} {[%emt 00:00:24]}
7. Nc3 {[%clk 01:37:59]} {[%emt 00:00:33]} cxd4 {[%clk 01:38:47]} {[%emt
00:02:42]} 8. exd4 {[%clk 01:38:15]} {[%emt 00:00:46]} d5 {[%clk 01:39:03]}
{[%emt 00:00:07]} 9. cxd5 {[%clk 01:37:25]} {[%emt 00:00:53]} Nxd5 {[%clk
01:39:27]} {[%emt 00:00:15]} 10. Ne5 {[%clk 01:36:09]} {[%emt 00:01:44]} O-O
{[%clk 01:39:40]} {[%emt 00:00:14]} 11. Qh5 {[%clk 01:35:29]} {[%emt 00:01:35]}
Nf6 {[%clk 01:39:14]} {[%emt 00:00:27]} 12. Qh4 {[%clk 01:34:10]} {[%emt
00:02:11]} Ne4 {[%clk 01:39:39]} 13. Qh5 {[%clk 01:31:15]} {[%emt 00:03:13]} g6
{[%clk 01:34:52]} {[%emt 00:05:12]} 14. Qe2 {[%clk 01:27:47]} {[%emt 00:03:57]}
Nxc3 {[%clk 01:28:45]} {[%emt 00:06:52]} 15. bxc3 {[%clk 01:27:57]} {[%emt
00:00:09]} Nd7 {[%clk 01:24:07]} {[%emt 00:05:29]} 16. Bh6 {[%clk 01:25:36]}
{[%emt 00:02:28]} Nxe5 {[%clk 01:24:19]} {[%emt 00:00:32]} 17. Bxf8 {[%clk
01:22:54]} {[%emt 00:03:06]} Nf3+ {[%clk 01:24:44]} 18. gxf3 {[%clk 01:22:34]}
{[%emt 00:00:46]} Bxf8 {[%clk 01:25:12]} {[%emt 00:00:08]} 19. Be4 {[%clk
01:11:13]} {[%emt 00:11:45]} Bd6 {[%clk 01:23:16]} {[%emt 00:02:37]} 20. f4
{[%clk 01:03:20]} {[%emt 00:08:12]} Bxe4 {[%clk 01:23:41]} {[%emt 00:00:41]} 21.
Qxe4 {[%clk 01:03:38]} Rc8 {[%clk 01:24:07]} 22. Rfc1 {[%clk 00:57:54]} {[%emt
00:05:53]} Qh4 {[%clk 01:23:58]} {[%emt 00:00:45]} 23. Rc2 {[%clk 00:57:51]}
{[%emt 00:00:26]} Bxf4 {[%clk 01:23:37]} {[%emt 00:00:50]} 24. f3 {[%clk
00:51:06]} {[%emt 00:07:20]} Kg7 {[%clk 01:23:08]} {[%emt 00:01:26]} 25. Qe2
{[%clk 00:49:04]} {[%emt 00:02:56]} Rd8 {[%clk 01:20:56]} {[%emt 00:02:27]} 26.
Kh1 {[%clk 00:45:53]} {[%emt 00:03:02]} Rd5 {[%clk 01:18:36]} {[%emt 00:02:48]}
27. Rd1 {[%clk 00:43:30]} {[%emt 00:03:02]} Rh5 {[%clk 01:12:20]} {[%emt
00:06:38]} 28. c4 {[%clk 00:40:41]} {[%emt 00:03:20]} Qh3 {[%clk 01:01:15]}
{[%emt 00:11:34]} 29. Qf1 {[%clk 00:31:52]} {[%emt 00:09:19]} Qg3 {[%clk
01:00:28]} {[%emt 00:01:19]} 30. Rdd2 {[%clk 00:27:34]} {[%emt 00:04:55]} Bxd2
{[%clk 01:00:39]} {[%emt 00:00:19]} 31. Rxd2 {[%clk 00:27:49]} {[%emt
00:00:22]} Qf4 {[%clk 01:00:47]} {[%emt 00:00:04]} 32. Qd1 {[%clk 00:23:38]}
{[%emt 00:05:03]} Rh3 {[%clk 00:59:53]} {[%emt 00:01:15]} 33. Rf2 {[%clk
00:23:39]} {[%emt 00:00:19]} Qe3 {[%clk 00:59:56]} {[%emt 00:00:27]} 34. Rf1
{[%clk 00:23:55]} {[%emt 00:00:22]} Rh4 {[%clk 00:59:22]} {[%emt 00:01:05]} 35.
d5 {[%clk 00:23:35]} {[%emt 00:00:40]} Rxc4 {[%clk 00:59:04]} {[%emt 00:01:29]}
36. d6 {[%clk 00:21:47]} {[%emt 00:02:14]} Rd4 {[%clk 00:59:27]} 37. Qa1 {[%clk
00:22:00]} e5 {[%clk 00:59:50]} 38. f4 {[%clk 00:22:10]} {[%emt 00:00:40]} f6
{[%clk 00:57:46]} {[%emt 00:02:19]} 39. Qe1 {[%clk 00:21:24]} {[%emt 00:01:08]}
exf4 {[%clk 00:57:46]} {[%emt 00:00:45]} 0-1

[Event "US Open 2021"]
[Site "Crowne Plaza Cherry Hill, United States"]
[Date "2021.08.01"]
[Round "2.7"]
[White "Sorokin, Aleksey"]
[Black "Tran, Minh Binh"]
[Result "1-0"]
[TimeControl "40/100;SD/30;+30"]
[WhiteTitle "GM"]
[WhiteElo "2628"]
[BlackElo "2046"]

1. d4 {[%clk 01:40:56]} {[%emt 00:00:19]} Nf6 {[%clk 01:40:55]} 2. c4 {[%clk
01:41:17]} {[%emt 00:00:19]} e6 {[%clk 01:41:20]} 3. Nf3 {[%clk 01:41:38]} Bb4+
{[%clk 01:41:46]} {[%emt 00:00:21]} 4. Nbd2 {[%clk 01:41:56]} {[%emt 00:00:08]}
O-O {[%clk 01:40:29]} {[%emt 00:01:49]} 5. a3 {[%clk 01:42:20]} Be7 {[%clk
01:39:55]} {[%emt 00:00:50]} 6. e4 {[%clk 01:42:43]} {[%emt 00:00:11]} d6
{[%clk 01:39:45]} {[%emt 00:00:37]} 7. Be2 {[%clk 01:43:03]} {[%emt 00:00:11]}
Nbd7 {[%clk 01:38:34]} {[%emt 00:01:40]} 8. O-O {[%clk 01:43:05]} {[%emt
00:00:39]} e5 {[%clk 01:36:33]} {[%emt 00:02:19]} 9. Qc2 {[%clk 01:43:28]}
{[%emt 00:00:10]} c5 {[%clk 01:34:35]} {[%emt 00:02:35]} 10. dxe5 {[%clk
01:42:11]} {[%emt 00:01:50]} dxe5 {[%clk 01:32:40]} {[%emt 00:02:49]} 11. Nb1
{[%clk 01:42:31]} b6 {[%clk 01:31:07]} {[%emt 00:01:38]} 12. Nc3 {[%clk
01:42:23]} {[%emt 00:01:15]} Bb7 {[%clk 01:31:27]} 13. Rd1 {[%clk 01:41:27]}
{[%emt 00:00:58]} Qc7 {[%clk 01:31:36]} {[%emt 00:00:36]} 14. Bg5 {[%clk
01:41:36]} {[%emt 00:00:08]} Rfe8 {[%clk 01:26:54]} {[%emt 00:05:12]} 15. Bh4
{[%clk 01:41:10]} {[%emt 00:00:53]} Nf8 {[%clk 01:22:52]} {[%emt 00:04:35]} 16.
Nd5 {[%clk 01:39:26]} {[%emt 00:02:28]} Nxd5 {[%clk 01:18:28]} {[%emt
00:04:36]} 17. cxd5 {[%clk 01:39:36]} {[%emt 00:00:39]} Bd6 {[%clk 01:16:23]}
{[%emt 00:02:26]} 18. Nd2 {[%clk 01:39:16]} {[%emt 00:00:49]} Ng6 {[%clk
01:05:48]} {[%emt 00:10:58]} 19. Bg3 {[%clk 01:39:24]} {[%emt 00:00:28]} Rad8
{[%clk 01:05:08]} {[%emt 00:01:03]} 20. Nc4 {[%clk 01:38:54]} {[%emt 00:01:18]}
Ne7 {[%clk 01:03:29]} {[%emt 00:01:52]} 21. a4 {[%clk 01:38:05]} {[%emt
00:01:20]} Nc8 {[%clk 00:42:41]} {[%emt 00:21:17]} 22. a5 {[%clk 01:37:57]}
{[%emt 00:00:44]} b5 {[%clk 00:42:44]} {[%emt 00:00:22]} 23. a6 {[%clk
01:38:16]} {[%emt 00:00:11]} bxc4 {[%clk 00:42:13]} {[%emt 00:01:00]} 24. axb7
{[%clk 01:38:39]} {[%emt 00:00:13]} Qxb7 {[%clk 00:42:40]} 25. Bxc4 {[%clk
01:39:02]} {[%emt 00:00:06]} Bc7 {[%clk 00:39:54]} {[%emt 00:03:29]} 26. Ba6
{[%clk 01:39:18]} {[%emt 00:00:03]} Qb6 {[%clk 00:40:21]} {[%emt 00:00:04]} 27.
f3 {[%clk 01:39:16]} {[%emt 00:00:27]} Bd6 {[%clk 00:33:34]} {[%emt 00:07:26]}
28. Bf2 {[%clk 01:39:31]} {[%emt 00:00:06]} Re7 {[%clk 00:31:50]} {[%emt
00:02:14]} 29. b4 {[%clk 01:37:35]} {[%emt 00:02:26]} Rc7 {[%clk 00:31:08]}
{[%emt 00:01:12]} 30. Rdb1 {[%clk 01:37:56]} {[%emt 00:00:39]} Ne7 {[%clk
00:29:25]} {[%emt 00:01:44]} 31. Qa2 {[%clk 01:37:37]} {[%emt 00:00:47]} Qb8
{[%clk 00:28:45]} {[%emt 00:01:10]} 32. bxc5 {[%clk 01:37:57]} {[%emt
00:00:31]} Qa8 {[%clk 00:29:11]} 33. cxd6 {[%clk 01:38:17]} Rxd6 {[%clk
00:29:34]} 34. Qa3 {[%clk 01:38:41]} {[%emt 00:00:28]} Rcd7 {[%clk 00:28:41]}
{[%emt 00:01:12]} 35. Bc5 {[%clk 01:38:50]} {[%emt 00:00:22]} Rxd5 {[%clk
00:29:00]} {[%emt 00:00:06]} 36. exd5 {[%clk 01:39:10]} {[%emt 00:00:05]} Nxd5
{[%clk 00:29:26]} {[%emt 00:00:13]} 37. Bd6 {[%clk 01:39:22]} {[%emt 00:00:21]}
Nb6 {[%clk 00:29:37]} {[%emt 00:00:15]} 38. Rxb6 {[%clk 01:39:38]} {[%emt
00:00:09]} axb6 {[%clk 00:30:00]} {[%emt 00:00:19]} 39. Bb5 {[%clk 01:40:01]}
{[%emt 00:00:03]} Qxa3 {[%clk 00:30:16]} {[%emt 00:00:21]} 40. Rxa3 {[%clk
02:10:29]} Rd8 {[%clk 01:00:37]} 41. Bxe5 {[%clk 02:10:44]} {[%emt 00:00:11]}
h5 {[%clk 01:01:03]} {[%emt 00:00:04]} 42. Bd3 {[%clk 02:11:02]} {[%emt
00:00:06]} f5 {[%clk 01:01:24]} {[%emt 00:00:17]} 43. Bxf5 {[%clk 02:11:25]} h4
{[%clk 01:01:45]} {[%emt 00:00:18]} 44. Ra7 {[%clk 02:11:48]} {[%emt 00:00:04]}
h3 {[%clk 01:02:09]} {[%emt 00:00:19]} 45. gxh3 {[%clk 02:12:10]} b5 {[%clk
01:02:28]} {[%emt 00:00:03]} 46. Rxg7+ {[%clk 02:12:33]} {[%emt 00:00:05]} Kf8
{[%clk 01:02:55]} {[%emt 00:00:18]} 47. Be6 {[%clk 02:12:52]} Rd2 {[%clk
01:03:05]} {[%emt 00:00:25]} 48. Bf6 {[%clk 02:13:13]} {[%emt 00:00:03]} b4
{[%clk 01:03:27]} {[%emt 00:00:19]} 49. Rg8# {[%clk 02:13:31]} 1-0